[Event "Titled Tuesday Blitz June 27 Early 2023"]
[White "Wesolowska, Hanna"]
[Black "Shubenkova, Veronika"]
[WhiteFideId "1104683"]
[BlackFideId "44124040"]
[WhiteElo "2189"]
[BlackElo "2504"]
[Result "0-1"]
[Round "4"]
[TimeControl "180+2"]
[Date "2023.06.27"]
[WhiteClock "0:00:04"]
[BlackClock "0:01:11"]
[Board "210"]

1. e4 {[%clk 0:02:25]}  e6 {[%clk 0:02:49]} 2. Nc3 {[%clk 0:02:25]}  d5 {[%clk 0:02:49]} 3. d4 {[%clk 0:02:26]}  Nf6 {[%clk 0:02:49]} 4. Bg5 {[%clk 0:02:24]}  Be7 {[%clk 0:02:49]} 5. e5 {[%clk 0:02:24]}  Nfd7 {[%clk 0:02:50]} 6. h4 {[%clk 0:02:13]}  h6 {[%clk 0:02:49]} 7. Qh5 {[%clk 0:01:59]}  g6 {[%clk 0:02:48]} 8. Bxe7 {[%clk 0:01:58]}  Qxe7 {[%clk 0:02:49]} 9. Qf3 {[%clk 0:01:54]}  a6 {[%clk 0:02:48]} 10. O-O-O {[%clk 0:01:53]}  c5 {[%clk 0:02:48]} 11. dxc5 {[%clk 0:01:50]}  Nc6 {[%clk 0:02:45]} 12. h5 {[%clk 0:01:46]}  g5 {[%clk 0:02:42]} 13. Qg3 {[%clk 0:01:41]}  Ndxe5 {[%clk 0:02:41]} 14. Re1 {[%clk 0:01:40]}  f6 {[%clk 0:02:35]} 15. f4 {[%clk 0:01:38]}  gxf4 {[%clk 0:02:34]} 16. Qxf4 {[%clk 0:01:39]}  Bd7 {[%clk 0:02:33]} 17. Nf3 {[%clk 0:01:37]}  O-O-O {[%clk 0:02:30]} 18. Na4 {[%clk 0:01:30]}  Kb8 {[%clk 0:02:19]} 19. a3 {[%clk 0:01:08]}  Ka7 {[%clk 0:02:19]} 20. b4 {[%clk 0:01:06]}  Nxf3 {[%clk 0:02:18]} 21. gxf3 {[%clk 0:01:02]}  e5 {[%clk 0:02:18]} 22. Qd2 {[%clk 0:00:57]}  e4 {[%clk 0:02:06]} 23. Nb6 {[%clk 0:00:52]}  f5 {[%clk 0:02:01]} 24. b5 {[%clk 0:00:47]}  axb5 {[%clk 0:02:00]} 25. Bxb5 {[%clk 0:00:45]}  Qxc5 {[%clk 0:02:00]} 26. Nxd7 {[%clk 0:00:24]}  Rxd7 {[%clk 0:01:59]} 27. a4 {[%clk 0:00:23]}  Re8 {[%clk 0:01:43]} 28. Re3 {[%clk 0:00:20]}  d4 {[%clk 0:01:42]} 29. Rb3 {[%clk 0:00:17]}  e3 {[%clk 0:01:41]} 30. Qd3 {[%clk 0:00:13]}  Ne5 {[%clk 0:01:39]} 31. Qe2 {[%clk 0:00:08]}  Nc6 {[%clk 0:01:23]} 32. Rd1 {[%clk 0:00:05]}  Rc8 {[%clk 0:01:20]} 33. Bxc6 {[%clk 0:00:05]}  Rxc6 {[%clk 0:01:19]} 34. Kb1 {[%clk 0:00:05]}  f4 {[%clk 0:01:15]} 35. Rdd3 {[%clk 0:00:06]}  Rdd6 {[%clk 0:01:13]} 36. Rb5 {[%clk 0:00:06]}  Rb6 {[%clk 0:01:12]} 37. Rdb3 {[%clk 0:00:06]}  Rxb5 {[%clk 0:01:12]} 38. Rb4 {[%clk 0:00:04]}  Rxb4+ {[%clk 0:01:11]} 0-1


[Site "https://www.chess.com"]

[Event "Titled Tuesday Blitz June 27 Early 2023"]
[White "Womacka, Mathias"]
[Black "Nilssen, Ellen Fredericia"]
[WhiteFideId "4611390"]
[BlackFideId "1441230"]
[WhiteElo "2479"]
[BlackElo "2170"]
[Result "1-0"]
[Round "4"]
[TimeControl "180+2"]
[Date "2023.06.27"]
[WhiteClock "0:00:14"]
[BlackClock "0:00:00"]
[Board "211"]

1. e4 {[%clk 0:03:00]}  e6 {[%clk 0:02:57]} 2. d4 {[%clk 0:03:00]}  d5 {[%clk 0:02:57]} 3. Nd2 {[%clk 0:03:00]}  c5 {[%clk 0:02:56]} 4. exd5 {[%clk 0:03:00]}  exd5 {[%clk 0:02:57]} 5. Ngf3 {[%clk 0:02:59]}  Nc6 {[%clk 0:02:57]} 6. Bb5 {[%clk 0:02:59]}  cxd4 {[%clk 0:02:57]} 7. Nxd4 {[%clk 0:02:54]}  Bd7 {[%clk 0:02:57]} 8. N2f3 {[%clk 0:02:44]}  Nf6 {[%clk 0:02:55]} 9. O-O {[%clk 0:02:43]}  Be7 {[%clk 0:02:55]} 10. Bg5 {[%clk 0:02:41]}  O-O {[%clk 0:02:52]} 11. c3 {[%clk 0:02:40]}  Rc8 {[%clk 0:02:40]} 12. Re1 {[%clk 0:02:36]}  Bg4 {[%clk 0:02:25]} 13. Be2 {[%clk 0:02:28]}  Re8 {[%clk 0:02:14]} 14. h3 {[%clk 0:02:26]}  Bh5 {[%clk 0:02:10]} 15. Nf5 {[%clk 0:02:21]}  h6 {[%clk 0:02:01]} 16. Nxe7+ {[%clk 0:02:18]}  Qxe7 {[%clk 0:02:01]} 17. Bh4 {[%clk 0:02:08]}  g5 {[%clk 0:02:01]} 18. Bg3 {[%clk 0:02:08]}  Ne4 {[%clk 0:02:01]} 19. Nd4 {[%clk 0:02:01]}  Nxg3 {[%clk 0:01:47]} 20. fxg3 {[%clk 0:01:50]}  Qe3+ {[%clk 0:01:32]} 21. Kh2 {[%clk 0:01:50]}  Bg6 {[%clk 0:01:10]} 22. Bg4 {[%clk 0:01:08]}  Qxe1 {[%clk 0:00:43]} 23. Qxe1 {[%clk 0:01:09]}  Rxe1 {[%clk 0:00:40]} 24. Rxe1 {[%clk 0:01:10]}  Rb8 {[%clk 0:00:38]} 25. Nb3 {[%clk 0:00:49]}  Rd8 {[%clk 0:00:31]} 26. Bf3 {[%clk 0:00:47]}  f5 {[%clk 0:00:25]} 27. Rd1 {[%clk 0:00:46]}  Bf7 {[%clk 0:00:24]} 28. Nd4 {[%clk 0:00:39]}  f4 {[%clk 0:00:08]} 29. gxf4 {[%clk 0:00:29]}  gxf4 {[%clk 0:00:09]} 30. Ne2 {[%clk 0:00:29]}  Ne5 {[%clk 0:00:07]} 31. Nxf4 {[%clk 0:00:27]}  Nxf3+ {[%clk 0:00:08]} 32. gxf3 {[%clk 0:00:28]}  d4 {[%clk 0:00:08]} 33. a3 {[%clk 0:00:20]}  Rd6 {[%clk 0:00:02]} 34. Rxd4 {[%clk 0:00:19]}  Rb6 {[%clk 0:00:03]} 35. Rb4 {[%clk 0:00:18]}  Rf6 {[%clk 0:00:01]} 36. Kg3 {[%clk 0:00:16]}  b6 {[%clk 0:00:00]} 37. Rd4 {[%clk 0:00:14]} 1-0


[Site "https://www.chess.com"]

[Event "Titled Tuesday Blitz June 27 Early 2023"]
[White "campochess"]
[Black "Eynullayev, Altay"]
[BlackFideId "13413562"]
[WhiteElo "2160"]
[BlackElo "2478"]
[Result "0-1"]
[Round "4"]
[TimeControl "180+2"]
[Date "2023.06.27"]
[WhiteClock "0:00:00"]
[BlackClock "0:00:04"]
[Board "212"]

1. c4 {[%clk 0:03:00]}  Nf6 {[%clk 0:02:59]} 2. Nc3 {[%clk 0:03:00]}  e5 {[%clk 0:02:57]} 3. g3 {[%clk 0:02:59]}  d5 {[%clk 0:02:58]} 4. cxd5 {[%clk 0:02:58]}  Nxd5 {[%clk 0:02:58]} 5. Bg2 {[%clk 0:02:58]}  Nb6 {[%clk 0:02:59]} 6. d3 {[%clk 0:02:57]}  Be7 {[%clk 0:02:59]} 7. Nf3 {[%clk 0:02:57]}  Nc6 {[%clk 0:02:59]} 8. O-O {[%clk 0:02:56]}  O-O {[%clk 0:02:59]} 9. a4 {[%clk 0:02:56]}  a5 {[%clk 0:02:54]} 10. b3 {[%clk 0:02:55]}  Be6 {[%clk 0:02:53]} 11. Bb2 {[%clk 0:02:54]}  Qd7 {[%clk 0:02:39]} 12. Ne4 {[%clk 0:02:43]}  f6 {[%clk 0:02:37]} 13. Rc1 {[%clk 0:02:40]}  Rfd8 {[%clk 0:02:31]} 14. Nc5 {[%clk 0:02:39]}  Bxc5 {[%clk 0:02:30]} 15. Rxc5 {[%clk 0:02:39]}  Nb4 {[%clk 0:02:26]} 16. Ba3 {[%clk 0:02:32]}  c6 {[%clk 0:02:23]} 17. Qd2 {[%clk 0:02:24]}  Qe7 {[%clk 0:02:06]} 18. Bxb4 {[%clk 0:02:23]}  axb4 {[%clk 0:02:06]} 19. Rfc1 {[%clk 0:02:18]}  Nd5 {[%clk 0:02:04]} 20. Ne1 {[%clk 0:02:11]}  Nc3 {[%clk 0:02:02]} 21. R1xc3 {[%clk 0:02:07]}  bxc3 {[%clk 0:02:03]} 22. Rxc3 {[%clk 0:02:07]}  Qd7 {[%clk 0:01:55]} 23. Nc2 {[%clk 0:01:59]}  Bd5 {[%clk 0:01:49]} 24. Bf1 {[%clk 0:01:52]}  h5 {[%clk 0:01:45]} 25. Ne3 {[%clk 0:01:47]}  Be6 {[%clk 0:01:44]} 26. h4 {[%clk 0:01:40]}  Qf7 {[%clk 0:01:40]} 27. Nc4 {[%clk 0:01:36]}  Rd4 {[%clk 0:01:38]} 28. Qe3 {[%clk 0:01:26]}  Rad8 {[%clk 0:01:37]} 29. a5 {[%clk 0:01:23]}  Qg6 {[%clk 0:01:36]} 30. Kh2 {[%clk 0:01:20]}  Bf5 {[%clk 0:00:57]} 31. Bg2 {[%clk 0:01:15]}  e4 {[%clk 0:00:55]} 32. dxe4 {[%clk 0:01:03]}  Bxe4 {[%clk 0:00:55]} 33. f3 {[%clk 0:01:03]}  Bf5 {[%clk 0:00:48]} 34. Qe7 {[%clk 0:00:56]}  R4d7 {[%clk 0:00:46]} 35. Qc5 {[%clk 0:00:53]}  Rd1 {[%clk 0:00:37]} 36. e4 {[%clk 0:00:51]}  Be6 {[%clk 0:00:37]} 37. Ne3 {[%clk 0:00:47]}  R1d2 {[%clk 0:00:33]} 38. Qe7 {[%clk 0:00:39]}  Bc8 {[%clk 0:00:25]} 39. Nd5 {[%clk 0:00:33]}  Re8 {[%clk 0:00:25]} 40. Qd6 {[%clk 0:00:18]}  cxd5 {[%clk 0:00:19]} 41. Qxd5+ {[%clk 0:00:15]}  Be6 {[%clk 0:00:19]} 42. Qxb7 {[%clk 0:00:15]}  Ra2 {[%clk 0:00:11]} 43. a6 {[%clk 0:00:14]}  Qf7 {[%clk 0:00:09]} 44. Rc7 {[%clk 0:00:13]}  Qg6 {[%clk 0:00:08]} 45. a7 {[%clk 0:00:12]}  Qh6 {[%clk 0:00:06]} 46. Qb5 {[%clk 0:00:09]}  Ra8 {[%clk 0:00:04]} 47. Re7 {[%clk 0:00:07]}  R2xa7 {[%clk 0:00:03]} 48. Rxe6 {[%clk 0:00:06]}  Ra2 {[%clk 0:00:03]} 49. Qd5 {[%clk 0:00:06]}  Kh7 {[%clk 0:00:03]} 50. Kh3 {[%clk 0:00:05]}  Qd2 {[%clk 0:00:03]} 51. Qf5+ {[%clk 0:00:00]}  Kg8 {[%clk 0:00:04]} 0-1


[Site "https://www.chess.com"]

[Event "Titled Tuesday Blitz June 27 Early 2023"]
[White "deloewre"]
[Black "Szyszylo, Rafal"]
[BlackFideId "1109626"]
[WhiteElo "2122"]
[BlackElo "2388"]
[Result "0-1"]
[Round "4"]
[TimeControl "180+2"]
[Date "2023.06.27"]
[WhiteClock "0:00:00"]
[BlackClock "0:01:00"]
[Board "218"]

1. d4 {[%clk 0:03:00]}  g6 {[%clk 0:02:57]} 2. Bf4 {[%clk 0:02:58]}  d6 {[%clk 0:02:57]} 3. Nf3 {[%clk 0:02:55]}  Bg7 {[%clk 0:02:56]} 4. Nc3 {[%clk 0:02:49]}  Nd7 {[%clk 0:02:56]} 5. e4 {[%clk 0:02:48]}  e5 {[%clk 0:02:56]} 6. Bg5 {[%clk 0:02:43]}  Bf6 {[%clk 0:02:45]} 7. Bxf6 {[%clk 0:02:40]}  Ngxf6 {[%clk 0:02:44]} 8. Bc4 {[%clk 0:02:34]}  O-O {[%clk 0:02:43]} 9. O-O {[%clk 0:02:31]}  exd4 {[%clk 0:02:43]} 10. Qxd4 {[%clk 0:02:27]}  Re8 {[%clk 0:02:42]} 11. Rfe1 {[%clk 0:02:25]}  Ne5 {[%clk 0:02:39]} 12. Nxe5 {[%clk 0:02:13]}  dxe5 {[%clk 0:02:36]} 13. Qe3 {[%clk 0:02:10]}  c6 {[%clk 0:02:34]} 14. Rad1 {[%clk 0:02:06]}  Qe7 {[%clk 0:02:33]} 15. Qg3 {[%clk 0:01:54]}  Nh5 {[%clk 0:02:28]} 16. Qf3 {[%clk 0:01:45]}  Nf4 {[%clk 0:02:25]} 17. g3 {[%clk 0:01:41]}  Ne6 {[%clk 0:02:23]} 18. Qe3 {[%clk 0:01:20]}  Nd4 {[%clk 0:02:19]} 19. Rxd4 {[%clk 0:01:19]}  exd4 {[%clk 0:02:19]} 20. Qxd4 {[%clk 0:01:18]}  Be6 {[%clk 0:02:19]} 21. Bxe6 {[%clk 0:01:13]}  Qxe6 {[%clk 0:02:18]} 22. e5 {[%clk 0:01:13]}  b6 {[%clk 0:02:18]} 23. Ne4 {[%clk 0:01:12]}  Red8 {[%clk 0:02:17]} 24. Qc3 {[%clk 0:01:05]}  Kg7 {[%clk 0:01:53]} 25. Ng5 {[%clk 0:01:02]}  Qf5 {[%clk 0:01:45]} 26. e6+ {[%clk 0:00:55]}  Qf6 {[%clk 0:01:27]} 27. Nxf7 {[%clk 0:00:40]}  Qxc3 {[%clk 0:01:26]} 28. bxc3 {[%clk 0:00:36]}  Re8 {[%clk 0:01:26]} 29. Ng5 {[%clk 0:00:32]}  h6 {[%clk 0:01:16]} 30. Nf3 {[%clk 0:00:29]}  c5 {[%clk 0:01:08]} 31. e7 {[%clk 0:00:18]}  Rac8 {[%clk 0:01:02]} 32. Ne5 {[%clk 0:00:08]}  Rc7 {[%clk 0:01:01]} 33. Nc4 {[%clk 0:00:05]}  Rcxe7 {[%clk 0:01:00]} 34. Rd1 {[%clk 0:00:04]}  Re1+ {[%clk 0:00:59]} 35. Rxe1 {[%clk 0:00:00]}  Rxe1+ {[%clk 0:01:00]} 0-1


[Site "https://www.chess.com"]

[Event "Titled Tuesday Blitz June 27 Early 2023"]
[White "Szente Varga, Fruzsina"]
[Black "Floresvillar Gonzalez, Luis Migu"]
[WhiteFideId "712264"]
[BlackFideId "5100542"]
[WhiteElo "2349"]
[BlackElo "2121"]
[Result "1-0"]
[Round "4"]
[TimeControl "180+2"]
[Date "2023.06.27"]
[WhiteClock "0:00:13"]
[BlackClock "0:00:00"]
[Board "219"]

1. e4 {[%clk 0:02:43]}  c6 {[%clk 0:02:57]} 2. d4 {[%clk 0:02:38]}  d5 {[%clk 0:02:57]} 3. Nc3 {[%clk 0:02:34]}  dxe4 {[%clk 0:02:56]} 4. Nxe4 {[%clk 0:02:34]}  Bf5 {[%clk 0:02:56]} 5. Ng3 {[%clk 0:02:34]}  Bg6 {[%clk 0:02:57]} 6. c3 {[%clk 0:02:34]}  Nf6 {[%clk 0:02:53]} 7. Bc4 {[%clk 0:02:34]}  e6 {[%clk 0:02:52]} 8. N1e2 {[%clk 0:02:35]}  b5 {[%clk 0:02:50]} 9. Bb3 {[%clk 0:02:32]}  a5 {[%clk 0:02:50]} 10. O-O {[%clk 0:02:31]}  a4 {[%clk 0:02:50]} 11. Bc2 {[%clk 0:02:31]}  Bd6 {[%clk 0:02:47]} 12. f4 {[%clk 0:02:31]}  Bxc2 {[%clk 0:02:41]} 13. Qxc2 {[%clk 0:02:32]}  O-O {[%clk 0:02:32]} 14. f5 {[%clk 0:02:30]}  Re8 {[%clk 0:02:24]} 15. Bg5 {[%clk 0:02:11]}  Nbd7 {[%clk 0:02:19]} 16. fxe6 {[%clk 0:01:58]}  Rxe6 {[%clk 0:02:18]} 17. Nh5 {[%clk 0:01:45]}  Bxh2+ {[%clk 0:02:08]} 18. Kh1 {[%clk 0:01:40]}  Bd6 {[%clk 0:01:56]} 19. Nef4 {[%clk 0:01:31]}  Bxf4 {[%clk 0:01:51]} 20. Rxf4 {[%clk 0:01:22]}  Qc7 {[%clk 0:01:45]} 21. Nxf6+ {[%clk 0:01:16]}  Nxf6 {[%clk 0:01:44]} 22. Raf1 {[%clk 0:01:16]}  Rae8 {[%clk 0:01:27]} 23. Bxf6 {[%clk 0:00:36]}  Rxf6 {[%clk 0:01:26]} 24. Rxf6 {[%clk 0:00:36]}  gxf6 {[%clk 0:01:26]} 25. Qf5 {[%clk 0:00:35]}  Re6 {[%clk 0:01:04]} 26. Qg4+ {[%clk 0:00:32]}  Kf8 {[%clk 0:01:04]} 27. Qh4 {[%clk 0:00:32]}  f5 {[%clk 0:00:45]} 28. Qxh7 {[%clk 0:00:25]}  Qg3 {[%clk 0:00:44]} 29. Qh8+ {[%clk 0:00:20]}  Ke7 {[%clk 0:00:43]} 30. Qh2 {[%clk 0:00:17]}  Qg5 {[%clk 0:00:37]} 31. Kg1 {[%clk 0:00:16]}  Qe3+ {[%clk 0:00:32]} 32. Rf2 {[%clk 0:00:17]}  Rh6 {[%clk 0:00:23]} 33. Qc7+ {[%clk 0:00:16]}  Kf8 {[%clk 0:00:20]} 34. Qd8+ {[%clk 0:00:15]}  Kg7 {[%clk 0:00:17]} 35. Qc7 {[%clk 0:00:13]}  Qe1+ {[%clk 0:00:16]} 36. Rf1 {[%clk 0:00:13]}  Qe3+ {[%clk 0:00:09]} 37. Rf2 {[%clk 0:00:13]}  Qe1+ {[%clk 0:00:06]} 38. Rf1 {[%clk 0:00:13]}  Rh1+ {[%clk 0:00:07]} 39. Kxh1 {[%clk 0:00:13]}  Qxf1+ {[%clk 0:00:07]} 40. Kh2 {[%clk 0:00:14]}  f4 {[%clk 0:00:05]} 41. Qe5+ {[%clk 0:00:14]}  f6 {[%clk 0:00:04]} 42. Qc7+ {[%clk 0:00:13]}  Kg6 {[%clk 0:00:04]} 43. Qxc6 {[%clk 0:00:14]}  Qf2 {[%clk 0:00:02]} 44. Qxb5 {[%clk 0:00:13]}  Qg3+ {[%clk 0:00:02]} 45. Kg1 {[%clk 0:00:13]}  Qe1+ {[%clk 0:00:00]} 46. Qf1 {[%clk 0:00:13]} 1-0


[Site "https://www.chess.com"]

[Event "Titled Tuesday Blitz June 27 Early 2023"]
[White "Marin Masis, Jose Esteban"]
[Black "Davidson, Kevin"]
[WhiteFideId "6508146"]
[BlackFideId "2056810"]
[WhiteElo "2114"]
[BlackElo "2310"]
[Result "0-1"]
[Round "4"]
[TimeControl "180+2"]
[Date "2023.06.27"]
[WhiteClock "0:00:04"]
[BlackClock "0:00:12"]
[Board "221"]

1. e4 {[%clk 0:03:00]}  c5 {[%clk 0:02:59]} 2. Nf3 {[%clk 0:02:59]}  d6 {[%clk 0:03:00]} 3. d4 {[%clk 0:02:59]}  cxd4 {[%clk 0:03:01]} 4. Nxd4 {[%clk 0:02:59]}  Nf6 {[%clk 0:03:01]} 5. Nc3 {[%clk 0:03:00]}  a6 {[%clk 0:03:02]} 6. Bc4 {[%clk 0:03:00]}  e6 {[%clk 0:03:02]} 7. O-O {[%clk 0:02:59]}  b5 {[%clk 0:03:01]} 8. Ncxb5 {[%clk 0:02:48]}  axb5 {[%clk 0:03:01]} 9. Bxb5+ {[%clk 0:02:47]}  Bd7 {[%clk 0:02:56]} 10. Bd3 {[%clk 0:02:47]}  Qb6 {[%clk 0:02:51]} 11. Nb3 {[%clk 0:02:44]}  Be7 {[%clk 0:02:46]} 12. Be3 {[%clk 0:02:44]}  Qb7 {[%clk 0:02:46]} 13. e5 {[%clk 0:02:41]}  dxe5 {[%clk 0:02:41]} 14. Nc5 {[%clk 0:02:38]}  Qxb2 {[%clk 0:02:26]} 15. Rb1 {[%clk 0:02:12]}  Qxa2 {[%clk 0:02:12]} 16. Nxd7 {[%clk 0:02:11]}  Nbxd7 {[%clk 0:02:09]} 17. Rb7 {[%clk 0:02:08]}  O-O {[%clk 0:02:02]} 18. Bb5 {[%clk 0:02:07]}  Rab8 {[%clk 0:01:29]} 19. Rxd7 {[%clk 0:01:56]}  Nxd7 {[%clk 0:01:25]} 20. Qxd7 {[%clk 0:01:56]}  Qxc2 {[%clk 0:01:10]} 21. Ba7 {[%clk 0:01:24]}  Rbe8 {[%clk 0:00:44]} 22. Qb7 {[%clk 0:00:55]}  Qb2 {[%clk 0:00:40]} 23. Qd7 {[%clk 0:00:31]}  Ba3 {[%clk 0:00:32]} 24. Qc6 {[%clk 0:00:09]}  Rc8 {[%clk 0:00:27]} 25. Qa6 {[%clk 0:00:06]}  Ra8 {[%clk 0:00:24]} 26. Bc6 {[%clk 0:00:06]}  Rac8 {[%clk 0:00:21]} 27. Be4 {[%clk 0:00:04]}  g6 {[%clk 0:00:18]} 28. Qd3 {[%clk 0:00:05]}  Rfd8 {[%clk 0:00:16]} 29. Qh3 {[%clk 0:00:05]}  Bc5 {[%clk 0:00:13]} 30. Qh6 {[%clk 0:00:04]}  Bxa7 {[%clk 0:00:12]} 0-1


[Site "https://www.chess.com"]

[Event "Titled Tuesday Blitz June 27 Early 2023"]
[White "Sairam, Pranav"]
[Black "Winkels, Marcel"]
[WhiteFideId "30951330"]
[BlackFideId "1003887"]
[WhiteElo "2304"]
[BlackElo "2114"]
[Result "1-0"]
[Round "4"]
[TimeControl "180+2"]
[Date "2023.06.27"]
[WhiteClock "0:00:12"]
[BlackClock "0:00:00"]
[Board "222"]

1. e4 {[%clk 0:03:00]}  c5 {[%clk 0:02:56]} 2. Nf3 {[%clk 0:03:00]}  d6 {[%clk 0:02:57]} 3. d4 {[%clk 0:03:00]}  cxd4 {[%clk 0:02:57]} 4. Nxd4 {[%clk 0:03:00]}  Nf6 {[%clk 0:02:58]} 5. Nc3 {[%clk 0:03:01]}  a6 {[%clk 0:02:58]} 6. Be2 {[%clk 0:02:59]}  e5 {[%clk 0:02:57]} 7. Nb3 {[%clk 0:02:59]}  Be7 {[%clk 0:02:57]} 8. Be3 {[%clk 0:02:59]}  Be6 {[%clk 0:02:56]} 9. f3 {[%clk 0:02:58]}  O-O {[%clk 0:02:55]} 10. O-O {[%clk 0:02:55]}  b5 {[%clk 0:02:54]} 11. a4 {[%clk 0:02:51]}  b4 {[%clk 0:02:53]} 12. Nd5 {[%clk 0:02:52]}  Nxd5 {[%clk 0:02:38]} 13. exd5 {[%clk 0:02:50]}  Bf5 {[%clk 0:02:38]} 14. a5 {[%clk 0:02:50]}  Nd7 {[%clk 0:02:32]} 15. Qd2 {[%clk 0:02:48]}  Rc8 {[%clk 0:02:30]} 16. Bd3 {[%clk 0:02:46]}  Bxd3 {[%clk 0:02:11]} 17. Qxd3 {[%clk 0:02:46]}  Qc7 {[%clk 0:02:08]} 18. Rf2 {[%clk 0:02:43]}  Qb7 {[%clk 0:02:05]} 19. Rd1 {[%clk 0:02:34]}  Rc7 {[%clk 0:02:04]} 20. f4 {[%clk 0:01:27]}  Bf6 {[%clk 0:01:47]} 21. f5 {[%clk 0:01:19]}  Rfc8 {[%clk 0:01:43]} 22. g4 {[%clk 0:01:02]}  e4 {[%clk 0:01:36]} 23. Qxe4 {[%clk 0:01:00]}  Bxb2 {[%clk 0:01:36]} 24. Bd4 {[%clk 0:00:55]}  Bxd4 {[%clk 0:01:34]} 25. Nxd4 {[%clk 0:00:54]}  Ne5 {[%clk 0:01:31]} 26. f6 {[%clk 0:00:52]}  Rc4 {[%clk 0:01:03]} 27. fxg7 {[%clk 0:00:47]}  Qa7 {[%clk 0:01:00]} 28. Qf4 {[%clk 0:00:16]}  R8c7 {[%clk 0:00:51]} 29. Qf6 {[%clk 0:00:13]}  Rc8 {[%clk 0:00:28]} 30. Nf5 {[%clk 0:00:13]}  Rxg4+ {[%clk 0:00:00]} 31. Kh1 {[%clk 0:00:12]} 1-0


[Site "https://www.chess.com"]

[Event "Titled Tuesday Blitz June 27 Early 2023"]
[White "Tqebuchava, Zurab"]
[Black "Wang, Alexander J"]
[WhiteFideId "13601113"]
[BlackFideId "30955270"]
[WhiteElo "2099"]
[BlackElo "2303"]
[Result "0-1"]
[Round "4"]
[TimeControl "180+2"]
[Date "2023.06.27"]
[WhiteClock "0:00:00"]
[BlackClock "0:00:06"]
[Board "223"]

1. e4 {[%clk 0:03:00]}  c5 {[%clk 0:02:59]} 2. Nf3 {[%clk 0:03:00]}  d6 {[%clk 0:02:59]} 3. Bb5+ {[%clk 0:02:59]}  Bd7 {[%clk 0:02:58]} 4. Bxd7+ {[%clk 0:02:59]}  Qxd7 {[%clk 0:02:58]} 5. O-O {[%clk 0:02:59]}  Nf6 {[%clk 0:02:58]} 6. Re1 {[%clk 0:03:00]}  Nc6 {[%clk 0:02:57]} 7. c3 {[%clk 0:02:59]}  e6 {[%clk 0:02:52]} 8. d3 {[%clk 0:02:57]}  Be7 {[%clk 0:02:49]} 9. Bg5 {[%clk 0:02:56]}  O-O {[%clk 0:02:48]} 10. Nbd2 {[%clk 0:02:56]}  h6 {[%clk 0:02:48]} 11. Bh4 {[%clk 0:02:51]}  Ne8 {[%clk 0:02:35]} 12. Bxe7 {[%clk 0:02:50]}  Qxe7 {[%clk 0:02:35]} 13. a4 {[%clk 0:02:48]}  Nc7 {[%clk 0:02:35]} 14. Nc4 {[%clk 0:02:43]}  a6 {[%clk 0:02:28]} 15. a5 {[%clk 0:02:39]}  Rad8 {[%clk 0:02:23]} 16. Qb3 {[%clk 0:02:35]}  Qd7 {[%clk 0:02:06]} 17. Qxb7 {[%clk 0:01:41]}  Rb8 {[%clk 0:01:48]} 18. Nb6 {[%clk 0:01:40]}  Rxb7 {[%clk 0:01:42]} 19. Nxd7 {[%clk 0:01:40]}  Rd8 {[%clk 0:01:39]} 20. Nb6 {[%clk 0:01:39]}  Na8 {[%clk 0:01:35]} 21. Nxa8 {[%clk 0:01:28]}  Rxa8 {[%clk 0:01:36]} 22. Re2 {[%clk 0:01:24]}  Rab8 {[%clk 0:01:13]} 23. Ra2 {[%clk 0:01:23]}  Rb5 {[%clk 0:01:09]} 24. Rc2 {[%clk 0:01:11]}  Rxa5 {[%clk 0:01:06]} 25. Rxa5 {[%clk 0:01:11]}  Nxa5 {[%clk 0:01:05]} 26. Nd2 {[%clk 0:01:11]}  Nc6 {[%clk 0:01:03]} 27. f4 {[%clk 0:00:57]}  d5 {[%clk 0:00:58]} 28. Kf2 {[%clk 0:00:55]}  a5 {[%clk 0:00:52]} 29. Ke3 {[%clk 0:00:55]}  Kf8 {[%clk 0:00:49]} 30. g3 {[%clk 0:00:54]}  Ke7 {[%clk 0:00:48]} 31. Nb1 {[%clk 0:00:47]}  Kd6 {[%clk 0:00:36]} 32. e5+ {[%clk 0:00:44]}  Kc7 {[%clk 0:00:35]} 33. Nd2 {[%clk 0:00:45]}  Kb6 {[%clk 0:00:33]} 34. b3 {[%clk 0:00:44]}  Kc7 {[%clk 0:00:33]} 35. Ra2 {[%clk 0:00:43]}  Rb5 {[%clk 0:00:31]} 36. h3 {[%clk 0:00:39]}  d4+ {[%clk 0:00:31]} 37. cxd4 {[%clk 0:00:34]}  Nxd4 {[%clk 0:00:31]} 38. Nc4 {[%clk 0:00:33]}  Rxb3 {[%clk 0:00:23]} 39. Rxa5 {[%clk 0:00:32]}  Nf5+ {[%clk 0:00:21]} 40. Kd2 {[%clk 0:00:29]}  Nxg3 {[%clk 0:00:20]} 41. Ra7+ {[%clk 0:00:26]}  Kc6 {[%clk 0:00:19]} 42. Rxf7 {[%clk 0:00:24]}  Nf5 {[%clk 0:00:19]} 43. Rf8 {[%clk 0:00:20]}  Rb1 {[%clk 0:00:15]} 44. Re8 {[%clk 0:00:19]}  Nd4 {[%clk 0:00:14]} 45. Rc8+ {[%clk 0:00:18]}  Kd7 {[%clk 0:00:13]} 46. Rg8 {[%clk 0:00:17]}  Rg1 {[%clk 0:00:12]} 47. Kc3 {[%clk 0:00:14]}  Rg2 {[%clk 0:00:12]} 48. Nd2 {[%clk 0:00:11]}  Nb5+ {[%clk 0:00:11]} 49. Kc4 {[%clk 0:00:09]}  Rxd2 {[%clk 0:00:08]} 50. Kxb5 {[%clk 0:00:09]}  Rg2 {[%clk 0:00:08]} 51. Kxc5 {[%clk 0:00:09]}  Rg3 {[%clk 0:00:08]} 52. d4 {[%clk 0:00:08]}  g5 {[%clk 0:00:08]} 53. fxg5 {[%clk 0:00:07]}  hxg5 {[%clk 0:00:08]} 54. Rg7+ {[%clk 0:00:07]}  Ke8 {[%clk 0:00:08]} 55. Kd6 {[%clk 0:00:07]}  Kf8 {[%clk 0:00:08]} 56. Ra7 {[%clk 0:00:06]}  Rxh3 {[%clk 0:00:08]} 57. Kxe6 {[%clk 0:00:05]}  g4 {[%clk 0:00:09]} 58. d5 {[%clk 0:00:05]}  g3 {[%clk 0:00:09]} 59. d6 {[%clk 0:00:02]}  g2 {[%clk 0:00:08]} 60. Ra1 {[%clk 0:00:02]}  Rh6+ {[%clk 0:00:07]} 61. Kd5 {[%clk 0:00:02]}  Rg6 {[%clk 0:00:07]} 62. d7 {[%clk 0:00:02]}  Ke7 {[%clk 0:00:07]} 63. e6 {[%clk 0:00:02]}  Rg5+ {[%clk 0:00:07]} 64. Ke4 {[%clk 0:00:02]}  g1=Q {[%clk 0:00:05]} 65. Rxg1 {[%clk 0:00:02]}  Rxg1 {[%clk 0:00:06]} 66. Kd5 {[%clk 0:00:00]}  Rg5+ {[%clk 0:00:06]} 0-1


[Site "https://www.chess.com"]